bitfinex-derivatives/quotes_SOLF0:USTF0_20240924
["timestamp","ask_amount","ask_price","bid_price","bid_amount"]
[1727217333233,9.16,151.17,151.12,9.16]
[1727217333434,1.3677,151.21,151.16,9.16]
[1727217333731,10.5277,151.21,151.17,9.16]
[1727217333934,9.16,151.2,151.16,9.16]
[1727217334433,3.307,151.19,151.16,9.16]
[1727217335635,3.307,151.19,151.15,9.16]
[1727217336135,3.307,151.19,151.14,3.3079]
[1727217336136,9.16,151.18,151.13,9.16]
[1727217336334,9.16,151.15,151.06,3.3655]
[1727217336537,9.16,151.15,151.1,3.3088]
[1727217336936,9.16,151.15,151.11,9.16]
[1727217337938,3.308,151.14,151.11,9.16]
[1727217338341,3.308,151.14,151.1,3.3088]
[1727217339740,14.31,151.19,151.1,14.31]
[1727217340032,15.6777,151.21,151.12,14.31]
[1727217340234,1.3677,151.21,151.12,14.31]
[1727217340438,3.3069,151.19,151.14,17.6179]
[1727217341941,4.58921358,151.22,151.14,14.31]
[1727217341942,3.3067,151.2,151.14,14.31]
[1727217342152,1.2946,151.22,151.16,14.31]
[1727217342454,4.6009,151.22,151.17,3.3072]
[1727217342643,3.3063,151.22,151.17,3.3072]
[1727217343440,3.3064,151.21,151.17,3.3072]
[1727217343646,14.31,151.23,151.14,14.31]
[1727217343840,14.31,151.23,151.14,17.56303358]
[1727217344039,3.307,151.19,151.14,20.87093358]
[1727217344739,3.307,151.19,151.15,3.3077]
[1727217345344,3.307,151.19,151.01,7.92714775]
[1727217345345,19.89,151.15,151.0,7.93184151]
[1727217345554,19.89,151.05,150.85,2.7066]
[1727217345750,19.89,151.12,150.86,12.20836412]
[1727217345943,14.31,150.98,150.87,11.62836412]
[1727217346148,14.31,150.98,150.86,18.28477522]
[1727217346453,22.92,151.0,150.86,3.97477522]
[1727217346750,3.3126,150.93,150.86,3.97477522]
[1727217346946,22.92,150.97,150.86,0.58]
[1727217347350,3.3128,150.92,150.86,0.58]
[1727217347547,22.92,150.95,150.86,0.58]
[1727217347750,21.87246206,150.94,150.86,0.58]
[1727217347953,13.66262103,150.93,150.86,0.58]
[1727217348151,13.66155414,150.92,150.86,0.58]
[1727217348458,13.66155414,150.91,150.86,0.58]
[1727217348647,13.66155414,150.9,150.86,0.58]
[1727217348850,5.38524784,150.89,150.86,0.58]
[1727217349059,8.20918635,150.94,150.86,0.58]
[1727217349357,3.31514435,150.93,150.86,0.58]
[1727217349558,3.31514435,150.92,150.86,0.58]
[1727217349861,3.3126,150.94,150.86,0.58]
[1727217350758,3.3126,150.94,150.87,3.3139]
[1727217351548,31.12918635,150.97,150.86,3.8941]
[1727217351752,8.20918635,150.96,150.86,3.8941]
[1727217352149,3.3128,150.92,150.86,3.8941]
[1727217353757,31.12918635,150.97,150.86,23.5]
[1727217353758,8.15992686,150.97,150.86,23.5]
[1727217353962,8.15992686,150.99,150.86,23.5]
[1727217354357,3.3122,150.95,150.89,3.3134]
[1727217356156,3.3124,150.94,150.89,3.3134]
[1727217357466,3.3124,150.94,150.9,3.3132]
[1727217358558,8.14036005,150.99,150.91,22.92]
[1727217358763,8.10522686,150.98,150.89,22.92]
[1727217358954,8.10522686,150.97,150.89,22.92]
[1727217359262,22.92,151.01,150.89,22.92]
[1727217359565,8.10251955,151.0,150.86,23.5]
[1727217359758,3.3124,150.94,150.86,23.5]
[1727217359957,31.06036005,151.01,150.86,23.5]
[1727217360156,3.3122,150.95,150.9,3.3131]
[1727217360364,8.14036005,151.0,150.9,3.3131]
[1727217360659,8.13196315,151.0,150.9,3.3131]
[1727217360864,3.3121,150.96,150.9,3.3131]
[1727217361063,13.1652378,150.95,150.9,3.3131]
[1727217361268,3.3121,150.96,150.9,3.3131]
[1727217361466,5.06281649,150.94,150.9,3.3131]
[1727217361769,5.06281649,150.93,150.9,3.3131]
[1727217362088,3.3122,150.95,150.9,3.3131]
[1727217362563,5.05887703,150.94,150.93,3.3126]
[1727217362761,5.05887703,150.94,150.86,23.5]
[1727217362762,8.13079436,151.02,150.91,26.16748077]
[1727217362957,13.15174066,151.01,150.91,26.16748077]
[1727217363158,3.3119,150.97,150.92,3.3127]
[1727217363368,5.05758997,150.96,150.92,3.3127]
[1727217363564,5.05758997,150.95,150.92,3.3127]
[1727217363765,3.3119,150.97,150.92,3.3127]
[1727217363969,5.05649719,150.96,150.92,3.3127]
[1727217364164,5.05649719,150.95,150.92,3.3127]
[1727217364366,3.3119,150.97,150.92,3.3127]
[1727217364667,5.05485546,150.96,150.92,3.3127]
[1727217364867,5.05485546,150.95,150.92,3.3127]
[1727217365059,3.3119,150.97,150.93,3.3125]
[1727217365255,5.0540109,150.96,150.93,3.3125]
[1727217365568,5.0540109,150.95,150.93,3.3125]
[1727217365762,8.12237799,151.02,150.92,3.3127]
[1727217365963,13.13867727,151.01,150.92,3.3127]
[1727217366266,13.13867727,151.0,150.92,3.3127]
[1727217366467,3.3116,150.98,150.92,3.3127]
[1727217366672,3.3116,150.98,150.91,14.32]
[1727217366673,3.3116,150.98,150.93,3.3125]
[1727217366861,5.05174289,150.97,150.93,3.3125]
[1727217367062,5.05174289,150.96,150.93,3.3125]
[1727217367261,3.3116,150.98,150.93,3.3125]
[1727217367667,5.05044104,150.97,150.93,3.3125]
[1727217367865,8.36224104,150.97,150.93,3.3125]
[1727217368062,5.05044104,150.96,150.93,3.3125]
[1727217368265,3.3118,150.97,150.93,3.3125]
[1727217368469,5.04943852,150.96,150.93,3.3125]
[1727217368772,3.3118,150.97,150.91,14.32]
[1727217368971,5.04943928,150.96,150.91,14.32]
[1727217369165,3.3118,150.97,150.92,3.3126]
[1727217369372,5.04908049,150.96,150.92,3.3126]
[1727217369669,3.3121,150.95,150.91,3.313]
[1727217369874,8.11084292,151.02,150.87,14.32]
[1727217370066,14.32,150.97,150.87,14.32]
[1727217370263,5.04939993,150.96,150.87,14.32]
[1727217370471,14.32,150.97,150.87,14.32]
[1727217370673,5.04899618,150.96,150.87,14.32]
[1727217371071,5.04899618,150.96,150.91,3.3129]
[1727217371271,5.04899618,150.96,150.9,14.32]
[1727217371470,14.32,150.99,150.9,14.32]
[1727217371676,5.04651711,150.98,150.9,14.32]
[1727217371875,8.35841711,150.97,150.92,3.3126]
[1727217372077,14.32,150.99,150.9,14.32]
[1727217372272,5.04650605,150.98,150.9,14.32]
[1727217372569,3.3121,150.96,150.92,3.3127]
[1727217373771,14.32,150.99,150.91,3.3128]
[1727217373965,5.04532858,150.98,150.9,14.32]
[1727217374171,5.04532858,150.97,150.9,14.32]
[1727217374479,14.32,150.99,150.9,14.32]
[1727217374773,3.312,150.96,150.92,3.3127]
[1727217375277,14.32,151.01,150.92,14.32]
[1727217375480,14.32,151.01,150.93,1.3774]
[1727217375481,5.04389849,151.0,150.93,1.3774]
[1727217375773,5.04389849,150.99,150.93,1.3774]
[1727217375982,14.32,151.01,150.93,1.3774]
[1727217376276,3.3116,150.98,150.93,1.3774]
[1727217377276,14.32,150.99,150.93,1.3774]
[1727217377678,5.04375773,150.98,150.93,1.3774]
[1727217377876,3.3116,150.98,150.93,4.6898]
[1727217378070,14.32,150.99,150.93,1.3774]
[1727217379772,3.3116,150.98,150.94,3.3123]
[1727217383373,17.6313,150.99,150.94,3.3123]
[1727217383574,14.32,151.03,150.94,14.32]
[1727217383771,14.32,151.01,150.93,1.3774]
[1727217383982,3.3113,150.99,150.94,3.3122]
[1727217384181,3.32593013,151.03,150.93,1.3774]
[1727217384182,14.32,150.98,150.93,1.3774]
[1727217385777,17.6316,150.98,150.94,3.3123]
[1727217386480,3.3118,150.97,150.93,4.6899]
[1727217388081,3.3121,150.96,150.93,1.3774]
[1727217388385,14.32,150.98,150.93,1.3774]
[1727217388881,3.3119,150.96,150.93,1.3774]
[1727217389086,14.32,150.98,150.93,1.3774]
[1727217390878,3.3118,150.97,150.93,4.69]
[1727217392186,3.3118,150.97,150.92,3.3127]
[1727217392393,14.32,150.98,150.91,3.35332721]
[1727217393296,7.9273,150.98,150.9,14.32]
[1727217393485,6.621,151.32,150.87,1.2872]
[1727217393486,14.32,151.16,150.95,6.6243]
[1727217393793,14.32,151.05,150.98,3.3113]
[1727217393991,17.61986878,151.05,150.93,14.32]
[1727217394484,17.61986878,151.05,150.94,3.3469151]
[1727217394692,14.32,151.05,150.94,3.29291123]
[1727217394886,14.32,151.05,150.98,3.3113]
[1727217395282,14.32,151.03,150.98,3.3113]
[1727217395492,14.32,151.03,150.93,14.32]
[1727217395493,14.32,151.03,150.97,3.3117]
[1727217395692,14.32,151.03,150.94,3.31477783]
[1727217396181,14.32,151.03,150.97,3.3115]
[1727217396687,14.32,151.03,150.94,3.31477783]
[1727217397984,17.6304,151.03,150.97,3.3116]
[1727217398184,1.4148,151.04,150.93,14.32]
[1727217398393,1.4148,151.04,150.93,17.58010603]
[1727217398584,14.32,151.03,150.94,4.0318]
[1727217398890,79.52,151.09,150.94,4.0318]
[1727217398891,19.89,151.2,151.0,14.32]
[1727217399088,14.32,151.07,151.03,3.3103]
[1727217399284,14.32,151.05,151.01,2.6661]
[1727217399489,14.32,151.05,150.95,14.32]
[1727217399690,14.32,151.05,150.96,2.6661]
[1727217400399,14.32,151.07,150.96,2.6661]
[1727217400993,2.6989,151.14,150.97,14.32]
[1727217401289,2.6989,151.14,150.99,14.32]
[1727217401290,14.32,151.09,150.99,14.32]
[1727217401686,14.32,151.11,151.01,14.32]
[1727217401889,1.3709,151.19,151.09,14.32]
[1727217402090,1.3447,151.18,151.1,14.32]
[1727217402500,1.3447,151.18,151.1,15.6457]
[1727217403293,79.52,151.25,151.1,15.6457]
[1727217403491,14.32,151.22,151.12,14.32]
[1727217404492,14.32,151.18,151.11,2.6923]
[1727217405796,14.32,151.18,151.13,3.3081]
[1727217405797,17.6273,151.18,151.13,3.3081]
[1727217406198,14.32,151.21,151.13,3.3081]
[1727217406393,3.3069,151.19,151.13,3.3081]
[1727217406601,14.32,151.21,151.13,3.3081]
[1727217406898,14.32,151.23,151.13,14.32]
[1727217407294,3.3066,151.21,151.15,3.3076]
[1727217408000,14.32,151.23,151.15,3.3076]
[1727217408001,3.3067,151.2,151.15,3.3076]
[1727217408309,14.32,151.17,151.11,1.3137]
[1727217408692,14.32,151.18,151.11,1.3137]
[1727217408894,14.32,151.18,151.12,3.3084]
[1727217409095,17.6273,151.18,151.12,3.3084]
[1727217409402,14.32,151.18,151.12,3.3084]
[1727217410606,3.3075,151.17,151.12,3.3084]
[1727217410807,3.3075,151.17,151.11,4.6223]
[1727217412709,3.3075,151.17,151.12,3.3084]
[1727217413012,17.6272,151.18,151.11,1.3137]
[1727217413507,17.6272,151.18,151.13,3.3082]
[1727217415307,1.3233,151.24,151.11,15.6337]
[1727217415498,14.32,151.22,151.11,15.6337]
[1727217415702,14.32,151.22,151.14,3.3079]
[1727217415909,14.32,151.18,151.11,1.3137]
[1727217416611,3.3075,151.17,151.12,3.3084]
[1727217417610,17.6272,151.18,151.13,3.3081]
[1727217417901,14.32,151.18,151.13,3.3081]
[1727217418303,14.32,151.15,151.1,1.3257]
[1727217418507,14.32,151.14,151.1,1.3257]
[1727217418907,17.628,151.14,151.1,1.3257]
[1727217419511,17.628,151.14,151.09,3.309]
[1727217419706,3.3084,151.13,151.08,3.3092]
[1727217419907,14.32,151.14,151.06,3.30398573]
[1727217420216,3.3083,151.13,151.08,3.3092]
[1727217421209,3.3084,151.12,151.08,3.3092]
[1727217421923,1.3757,151.16,151.05,1.3135]
[1727217421924,15.6957,151.16,151.05,1.3135]
[1727217422113,14.32,151.09,151.05,1.3135]
[1727217422609,14.32,151.09,151.05,4.6234]
[1727217424115,14.32,151.11,151.05,1.3135]
[1727217424311,1.3723,151.15,151.05,1.3135]
[1727217424312,14.32,151.13,151.05,1.3135]
[1727217424511,14.32,151.13,151.08,3.3092]
[1727217424810,3.3085,151.12,151.08,3.3092]
[1727217425009,14.32,151.13,151.08,3.3092]
[1727217425507,17.6284,151.13,151.08,3.3092]
[1727217426511,3.3085,151.12,151.07,3.3094]
[1727217426713,8.0,151.07,151.05,1.3135]
[1727217426909,8.0,151.07,150.87,26.53005428]
[1727217427113,8.0,151.07,151.04,3.3101]
[1727217427505,14.32,151.05,151.01,1.2998]
[1727217428215,3.3102,151.04,151.01,1.2998]
[1727217428519,3.3102,151.04,151.0,3.3109]
[1727217428705,14.32,151.05,150.99,1.2902]
[1727217428911,17.6301,151.05,151.01,3.3107]
[1727217429614,14.32,151.05,150.99,1.2902]
[1727217430211,3.3098,151.06,150.99,1.2902]
[1727217431214,3.3098,151.06,151.02,3.3104]
[1727217431409,3.31,151.05,150.99,1.2902]
[1727217431613,14.32,151.06,150.99,1.2902]
[1727217432714,3.31,151.05,150.99,1.2902]
[1727217432914,14.32,151.06,150.99,1.2902]
[1727217433315,17.6299,151.06,151.02,3.3105]
[1727217434521,3.31,151.05,151.01,3.3108]
[1727217435917,17.6298,151.06,150.99,1.2902]
[1727217437221,3.31,151.05,151.02,3.3105]
[1727217438118,17.6298,151.06,151.02,3.3105]
[1727217441120,8.0,151.07,151.01,14.32]
[1727217441322,8.0,151.07,151.03,14.32]
[1727217441523,8.0,151.07,151.06,3.3097]
[1727217441823,8.0,151.07,151.06,6.62194327]
[1727217442016,8.0,151.07,151.06,3.3097]
[1727217442224,8.0,151.07,151.06,6.56529825]
[1727217442426,8.0,151.07,151.06,3.3097]
[1727217442626,14.32,151.13,151.03,14.32]
[1727217443027,14.32,151.13,151.04,1.4193]
[1727217443624,3.3087,151.11,151.08,3.3091]
[1727217443826,11.3087,151.11,151.08,3.3091]
[1727217447727,8.0,151.11,151.05,17.66911595]
[1727217448029,8.0,151.11,151.05,15.7028]
[1727217448426,3.3084,151.12,151.09,3.3089]
[1727217449027,11.3083,151.13,151.1,3.3087]
[1727217449626,11.3083,151.13,151.06,3.3472351]
[1727217449627,8.0,151.13,151.11,3.3085]
[1727217453326,14.32,151.12,151.0,338.0]
[1727217453538,14.32,151.05,151.0,3.28996159]
[1727217453736,22.32,151.05,150.98,2.7527]
[1727217453936,3.3102,151.04,150.99,3.28400211]
[1727217454136,3.3102,151.04,150.98,2.7527]
[1727217454137,22.32,151.05,150.98,2.7527]
[1727217454840,3.3103,151.04,151.0,3.3109]
[1727217455038,3.3103,151.04,150.98,6.13304697]
[1727217455744,3.3104,151.03,150.98,6.13304697]
[1727217456039,14.32,151.03,150.99,3.3112]
[1727217456836,3.3107,151.02,150.99,3.3112]
[1727217457343,3.3107,151.02,150.94,14.32]
[1727217457344,3.3109,151.01,150.94,14.32]
[1727217457541,3.3109,151.01,150.94,17.61468838]
[1727217458742,11.3106,151.02,150.94,17.61468838]
[1727217458943,8.0,151.02,150.94,17.61468838]
[1727217459334,11.3107,151.02,150.98,3.3113]
[1727217459736,11.3107,151.02,150.99,3.3111]
[1727217459936,11.3107,151.02,150.96,14.32]
[1727217459937,8.0,151.02,150.96,14.32]
[1727217460142,8.0,151.02,151.0,14.32]
[1727217460446,8.0,151.02,151.01,3.3108]
[1727217461242,8.0,151.02,151.0,3.311]
[1727217461641,14.32,151.03,150.97,3.33211673]
[1727217461940,14.32,151.01,150.94,3.25394779]
[1727217462146,14.32,150.99,150.93,4.0473]
[1727217462357,8.0,150.98,150.94,3.3123]
[1727217462846,11.3117,150.98,150.94,3.3123]
[1727217463247,8.0,150.98,150.93,1.3389]
[1727217463442,6.618,151.1,150.95,14.32]
[1727217463643,16.9533,151.12,150.94,6.79649815]
[1727217463842,14.32,151.04,150.94,6.79649815]
[1727217464041,2.6717,151.03,150.93,4.63557573]
[1727217464240,14.32,151.02,150.97,3.3115]
[1727217464647,14.32,151.02,150.93,4.63557573]
[1727217464843,14.32,151.02,150.98,3.3113]
[1727217465847,17.6306,151.02,150.98,3.3113]
[1727217466248,14.32,151.02,150.98,3.3113]
[1727217466548,14.32,151.02,150.99,3.3113]
[1727217466943,14.32,151.02,150.93,4.63557573]
[1727217467343,86.0919,151.24,150.98,14.32]
[1727217467548,86.0919,151.24,151.01,14.32]
[1727217467549,14.32,151.12,151.01,14.32]
[1727217467850,14.32,151.12,151.03,14.32]
[1727217468052,17.6285,151.12,151.03,14.32]
[1727217468245,14.32,151.12,151.03,14.32]
[1727217468840,17.6286,151.12,151.03,14.32]
[1727217469250,3.3086,151.12,151.03,14.32]
[1727217469553,3.3086,151.12,151.07,3.3095]
[1727217472153,1.3276,151.13,150.99,14.32]
[1727217472351,14.32,151.09,150.99,14.32]
[1727217472750,17.6291,151.09,151.04,3.31]
[1727217473543,17.6291,151.09,151.05,3.3099]
[1727217474243,17.6291,151.09,150.99,14.32]
[1727217474244,14.32,151.09,150.99,14.32]
[1727217474648,3.3096,151.07,151.02,3.3104]
[1727217475651,14.32,151.07,151.01,3.3108]
[1727217475858,2.7543,151.06,151.01,3.3108]
[1727217476053,4.0502,151.06,151.01,3.3108]
[1727217476255,188.9908461,153.13,151.05,14.32]
[1727217476256,79.48,151.27,151.05,14.32]
[1727217476446,15.674,151.15,151.05,14.32]
[1727217476752,2.6777,151.14,151.05,14.32]
[1727217476953,14.32,151.1,151.01,4.1454]
[1727217477547,14.32,151.1,151.01,2.7381]
[1727217478361,17.629,151.1,151.05,3.3098]
[1727217478655,14.32,151.1,151.05,3.3098]
[1727217480459,2.6777,151.14,151.05,3.3098]
[1727217480756,14.32,151.1,151.05,3.3098]
[1727217481156,14.32,151.1,150.97,6.05558717]
[1727217481157,14.32,151.08,150.97,6.05558717]
[1727217481359,14.32,151.06,150.97,3.24158717]
[1727217481554,14.32,151.06,150.96,72.85790437]
[1727217481756,14.32,151.06,150.96,76.1782108]
[1727217482258,2.5769,151.07,150.98,14.32]
[1727217482558,9.8449947,151.17,151.04,14.32]
[1727217482559,14.32,151.13,151.04,14.32]
[1727217483056,3.3088,151.11,151.07,3.3094]
[1727217483565,14.32,151.13,151.08,3.3093]
[1727217483956,18.2286,151.15,151.04,14.32]
[1727217484154,3.9086,151.15,151.06,14.32]
[1727217484657,18.2286,151.15,151.06,14.32]
[1727217484857,3.3081,151.14,151.06,14.32]
[1727217485255,18.2286,151.15,151.06,14.32]
[1727217486855,3.3082,151.13,151.06,14.32]
[1727217490759,3.3082,151.13,151.09,3.3089]
[1727217492063,3.3082,151.13,151.1,3.3088]
[1727217494366,3.3082,151.13,151.09,3.309]
[1727217494564,3.3084,151.12,151.09,3.309]
[1727217496173,3.3083,151.13,151.09,3.309]
[1727217496462,14.32,151.1,151.02,1.4134]
[1727217496669,14.32,151.1,150.98,17.7021006]
[1727217496670,14.32,151.07,150.98,17.7021006]
[1727217496861,14.32,151.07,150.97,339.3742]
[1727217497062,14.32,151.05,150.97,2.7388]
[1727217497260,14.32,151.04,150.97,2.7388]
[1727217497768,14.32,151.04,150.97,1.3646]
[1727217498564,3.3104,151.03,150.97,1.3646]
[1727217499268,17.6303,151.04,150.97,1.3646]
[1727217499467,4.1436,151.07,150.97,1.3646]
[1727217499668,2.8036,151.07,151.0,14.32]
[1727217499968,14.32,151.09,151.0,14.32]
[1727217499969,3.3092,151.09,151.0,14.32]
[1727217500368,3.3092,151.09,151.05,3.3098]
[1727217502266,18.275,151.13,151.04,14.32]
[1727217502977,18.275,151.13,151.04,17.6305916]
[1727217503370,18.275,151.13,151.04,14.32]
[1727217503781,18.275,151.13,151.04,17.61845141]
[1727217504471,3.3085,151.12,151.08,3.3092]
[1727217506376,21.5833,151.13,151.09,3.3089]
[1727217508875,3.3084,151.12,151.09,3.3089]
[1727217510069,3.3086,151.11,151.05,1.3699]
[1727217511676,3.3086,151.11,151.07,3.3094]
[1727217512279,14.32,151.11,151.06,3.3097]
[1727217512778,3.3089,151.1,151.06,3.3097]
[1727217513684,3.3089,151.1,151.07,3.3095]
[1727217515078,3.3091,151.09,151.07,3.3095]
[1727217515379,18.275,151.13,151.07,3.3095]
[1727217516084,3.3089,151.1,151.07,3.3095]
[1727217516474,28.64,151.08,150.96,404.50196964]
[1727217516675,3.311,151.0,150.92,14.32]
[1727217516873,14.32,151.0,150.93,6.81723549]
[1727217517075,14.32,151.0,150.92,6.82046941]
[1727217517273,2.7027,151.01,150.91,29.19485079]
[1727217517484,14.32,151.06,150.95,14.32]
[1727217517981,3.3104,151.03,150.95,14.32]
[1727217518583,3.3104,151.03,150.99,3.3112]
[1727217518976,3.3102,151.04,150.95,14.32]
[1727217519271,15.6497,151.06,150.95,14.32]
[1727217519980,3.3103,151.04,150.99,3.3111]
[1727217520772,3.3103,151.04,150.91,3.9636]
[1727217520773,3.39031339,151.04,150.91,3.9636]
[1727217520976,22.9,151.02,150.92,6.81756626]
[1727217521180,22.9,151.02,150.91,14.87170603]
[1727217521477,22.9,151.02,150.92,6.81750026]
[1727217521681,22.9,151.04,150.91,37.77170603]
[1727217521882,22.9,151.04,150.92,6.81768463]
[1727217522089,22.9,151.04,150.91,37.77170603]
[1727217522282,19.8294,151.04,150.96,6.6238]
[1727217522490,2.7775,151.12,150.97,6.81733433]
[1727217522684,2.7775,151.12,151.02,22.9]
[1727217523311,8.3818,151.42,151.02,22.9]
[1727217523814,8.3818,151.42,150.96,6.6238]
[1727217523815,8.3818,151.42,150.88,6.624]
[1727217523816,569.11153642,151.66,150.88,6.624]
[1727217523818,2.73862347,151.96,151.19,6.624]
[1727217523876,1.16392039,152.22,151.03,100.70954343]
[1727217523877,76.01788201,151.99,151.38,6.624]
[1727217524100,76.01788201,151.99,151.2,97.1786195]
[1727217524101,76.01788201,151.99,151.41,46.364]
[1727217524205,76.01788201,151.99,151.4,7.96406527]
[1727217524206,22.9,151.74,151.42,17.6986195]
[1727217524384,22.9,151.67,151.49,22.9]
[1727217524595,22.9,151.58,151.4,124.192978]
[1727217524792,79.4,151.66,151.43,22.9]
[1727217525092,22.9,151.6,151.43,7.96406527]
[1727217525286,22.9,151.6,151.44,8.09594972]
[1727217525487,22.9,151.6,151.45,8.09594972]
[1727217525678,22.9,151.6,151.45,29.08278861]
[1727217525884,22.9,151.6,151.44,35.85351956]
[1727217525885,22.9,151.54,151.46,41.00071807]
[1727217526087,22.9,151.51,151.47,25.96254029]
[1727217526285,79.4,151.66,151.48,10.6740689]
[1727217526587,79.4,151.66,151.47,6.67129306]
[1727217526588,37.08,151.56,151.49,30.6743907]
[1727217526788,37.08,151.56,151.45,7.79909067]
[1727217526789,37.08,151.56,151.5,17.34536196]
[1727217526989,37.08,151.56,151.51,17.34536196]
[1727217527186,37.08,151.56,151.52,13.09956196]
[1727217527387,37.08,151.56,151.53,4.3056689]
[1727217527589,37.08,151.54,151.44,20.75261023]
[1727217527787,37.08,151.54,151.44,12.95351956]
[1727217528386,37.08,151.57,151.44,12.95351956]
[1727217529287,37.08,151.54,151.44,12.95351956]
[1727217532293,37.08,151.51,151.44,12.95351956]
[1727217532995,37.08,151.48,151.44,12.95351956]
[1727217533588,36.38845929,151.48,151.44,12.95351956]
[1727217534497,36.38845929,151.48,151.36,3.3031]
[1727217534890,36.38845929,151.48,151.35,1.2995]
[1727217535089,37.08,151.45,151.33,1.3696]
[1727217535491,37.08,151.45,151.34,3.3034]
[1727217535797,37.08,151.45,151.33,1.3696]
[1727217537099,37.08,151.45,151.32,37.08]
[1727217537997,37.08,151.45,151.27,2.7054]
[1727217537998,37.08,151.43,151.3,115.91583374]
[1727217538996,37.08,151.43,151.3,119.22013374]
[1727217539805,37.08,151.4,151.27,39.7854]
[1727217540300,37.08,151.48,151.29,37.08]
[1727217540604,1.3498,151.5,151.37,37.08]
[1727217540793,37.08,151.49,151.37,37.08]
[1727217540989,37.08,151.49,151.27,2.7054]
[1727217540990,37.08,151.42,151.27,2.7054]
[1727217541202,1.3498,151.5,151.28,37.08]
[1727217541406,21.2198,151.5,151.3,3.3045]
[1727217541612,21.2198,151.5,151.3,37.08]
[1727217541613,37.08,151.44,151.3,37.08]
[1727217542109,37.08,151.44,151.32,3.3039]
[1727217542408,37.08,151.44,151.3,37.08]
[1727217542809,1.3498,151.5,151.35,37.08]
[1727217542810,37.08,151.49,151.35,37.08]
[1727217543002,37.08,151.49,151.37,37.08]
[1727217543597,1.3498,151.5,151.37,37.08]
[1727217543894,1.3498,151.5,151.28,1.3215]
[1727217543895,37.08,151.48,151.35,37.08]
[1727217544300,37.08,151.45,151.36,3.3032]
[1727217545105,37.08,151.45,151.37,3.3029]
[1727217545298,37.08,151.48,151.37,3.3029]
[1727217545505,37.08,151.48,151.35,37.08]
[1727217545693,37.08,151.45,151.33,37.08]
[1727217546099,37.08,151.48,151.37,3.3028]
[1727217546303,37.08,151.48,151.33,37.08]
[1727217546917,37.08,151.48,151.36,3.303]
[1727217547709,37.08,151.48,151.35,3.3032]
[1727217548006,1.3498,151.5,151.33,37.08]
[1727217548007,37.08,151.45,151.33,37.08]
[1727217548199,37.08,151.45,151.34,3.3036]
[1727217548406,37.08,151.43,151.3,37.08]
[1727217548606,37.08,151.43,151.32,3.304]
[1727217549002,37.08,151.43,151.3,37.08]
[1727217549308,37.08,151.45,151.33,37.08]
[1727217549706,37.08,151.45,151.35,3.3032]
[1727217549905,1.3739,151.47,151.35,37.08]
[1727217550299,37.08,151.43,151.3,37.08]
[1727217550909,37.08,151.43,151.34,3.3036]
[1727217553000,37.08,151.43,151.35,3.3033]
[1727217553204,37.08,151.45,151.33,37.08]
[1727217553605,37.08,151.45,151.35,3.3033]
[1727217554311,22.84,151.45,151.35,3.3033]
[1727217555607,22.84,151.42,151.29,22.84]